[Event "MČR v rapid šachu družstev 2019"]
[Site "Teplice, Czech Republic"]
[Date "2019.09.15"]
[Round "6.15"]
[White "Sochor, Jiri"]
[Black "Pribyl, Josef"]
[Result "1/2-1/2"]
[TimeControl "15 min. + 5s"]
[WhiteElo "2249"]
[BlackElo "2285"]

1. d4 {[%emt 00:04:28]} Nf6 {[%emt 00:00:01]} 2. c4 g6 {[%emt 00:00:01]} 3. Nc3
{[%emt 00:00:01]} d5 4. cxd5 {[%emt 00:00:18]} Nxd5 5. e4 Nxc3 {[%emt
00:00:01]} 6. bxc3 Bg7 {[%emt 00:00:01]} 7. Be3 {[%emt 00:00:25]} O-O {[%emt
00:00:03]} 8. Bc4 {[%emt 00:00:32]} c5 {[%emt 00:00:09]} 9. Ne2 {[%emt
00:00:02]} Nc6 {[%emt 00:00:02]} 10. O-O {[%emt 00:00:04]} Qc7 {[%emt
00:00:07]} 11. Rc1 {[%emt 00:00:25]} Rd8 {[%emt 00:00:02]} 12. Qc2 {[%emt
00:01:37]} Na5 {[%emt 00:00:07]} 13. Bb3 {[%emt 00:00:28]} Nxb3 {[%emt
00:00:10]} 14. Qxb3 {[%emt 00:00:11]} b6 {[%emt 00:00:09]} 15. dxc5 {[%emt
00:01:35]} bxc5 {[%emt 00:00:09]} 16. Qc4 {[%emt 00:00:02]} Be6 {[%emt
00:00:29]} 17. Qxc5 {[%emt 00:00:02]} Qxc5 {[%emt 00:00:11]} 18. Bxc5 Bc4
{[%emt 00:00:30]} 19. Rfe1 {[%emt 00:00:12]} Rd2 {[%emt 00:00:08]} 20. Ng3
{[%emt 00:00:35]} e5 {[%emt 00:00:29]} 21. a3 {[%emt 00:00:14]} a5 {[%emt
00:00:23]} 22. Nf1 {[%emt 00:00:15]} Rd3 {[%emt 00:00:33]} 23. Ne3 {[%emt
00:00:31]} Bb3 {[%emt 00:00:01]} 24. c4 {[%emt 00:00:30]} Rc8 {[%emt 00:00:08]}
25. Bb6 {[%emt 00:00:03]} a4 {[%emt 00:00:09]} 26. c5 {[%emt 00:00:32]} Bf8
{[%emt 00:00:10]} 27. h3 {[%emt 00:01:05]} Kg7 {[%emt 00:00:15]} 28. Ng4 {[%emt
00:01:26]} f6 {[%emt 00:00:29]} 29. Re3 {[%emt 00:00:20]} Rd2 {[%emt 00:00:06]}
30. Rec3 {[%emt 00:00:11]} h5 {[%emt 00:00:13]} 31. Ne3 {[%emt 00:00:02]} Kf7
{[%emt 00:00:07]} 32. Ba5 {[%emt 00:00:09]} Ra2 {[%emt 00:00:10]} 33. Bb4
{[%emt 00:00:07]} Rc6 {[%emt 00:00:16]} 34. Nc4 {[%emt 00:00:35]} Bh6 {[%emt
00:00:11]} 35. Re1 {[%emt 00:00:27]} Rc7 {[%emt 00:00:24]} 36. c6 {[%emt
00:00:12]} Ke6 {[%emt 00:00:11]} 37. Ne3 {[%emt 00:00:15]} Rd2 {[%emt
00:00:26]} 38. Kf1 {[%emt 00:01:41]} Rd4 {[%emt 00:00:19]} 39. f3 {[%emt
00:00:26]} Bxe3 {[%emt 00:00:04]} 40. Rexe3 {[%emt 00:00:07]} Bc4+ {[%emt
00:00:04]} 41. Kf2 {[%emt 00:00:11]} Rxc6 {[%emt 00:00:02]} 42. Rc2 {[%emt
00:00:05]} h4 {[%emt 00:00:24]} 43. Rec3 {[%emt 00:00:15]} f5 {[%emt 00:00:11]}
44. exf5+ {[%emt 00:00:40]} gxf5 {[%emt 00:00:02]} 45. Ba5 Kd5 {[%emt
00:00:37]} 46. Bd8 {[%emt 00:00:17]} Bb5 {[%emt 00:00:10]} 47. Rxc6 {[%emt
00:00:26]} Bxc6 {[%emt 00:00:01]} 48. Be7 Bd7 {[%emt 00:00:44]} 49. Bc5 {[%emt
00:00:24]} Rd1 {[%emt 00:00:30]} 50. Be7 {[%emt 00:00:13]} Rd3 {[%emt
00:00:20]} 51. Ke2 {[%emt 00:00:31]} Rd4 {[%emt 00:00:35]} 52. Rd2 {[%emt
00:00:29]} Bb5+ 53. Ke1 Bd3 {[%emt 00:00:23]} 54. Bxh4 {[%emt 00:00:06]} Kc4
{[%emt 00:00:35]} 55. Bf6 {[%emt 00:00:07]} Kd5 {[%emt 00:00:38]} 56. f4 {[%emt
00:00:13]} Ke4 {[%emt 00:00:42]} 57. Bxe5 {[%emt 00:00:01]} Rc4 58. Kf2 {[%emt
00:00:01]} Rc1 {[%emt 00:00:03]} 59. Kg3 {[%emt 00:00:05]} Re1 {[%emt
00:00:07]} 60. Rf2 {[%emt 00:00:06]} Re3+ {[%emt 00:00:05]} 61. Kh2 {[%emt
00:00:05]} Kd5 {[%emt 00:00:05]} 62. g4 {[%emt 00:00:07]} Ke6 {[%emt 00:00:05]}
63. g5 {[%emt 00:00:07]} Kf7 {[%emt 00:00:01]} 64. Kg2 {[%emt 00:00:06]} Kg6
{[%emt 00:00:03]} 65. Rb2 {[%emt 00:00:04]} Be4+ {[%emt 00:00:03]} 66. Kf2 Rxh3
{[%emt 00:00:02]} 67. Rb6+ {[%emt 00:00:03]} Kh5 {[%emt 00:00:01]} 68. Rh6+
{[%emt 00:00:03]} Kg4 {[%emt 00:00:01]} 69. Rxh3 {[%emt 00:00:01]} Kxh3 70. g6
{[%emt 00:00:02]} Bd5 71. g7 {[%emt 00:00:08]} Kg4 {[%emt 00:00:01]} 72. Ke3
Kh5 {[%emt 00:00:01]} 73. Kd4 Bb3 {[%emt 00:00:02]} 74. Bd6 {[%emt 00:00:06]}
Kg6 {[%emt 00:00:01]} 75. Ke5 Kxg7 {[%emt 00:00:02]} 76. Kxf5 {[%emt 00:00:03]}
Kf7 {[%emt 00:00:03]} 1/2-1/2

[Event "MČR v rapid šachu družstev 2019"]
[Site "Teplice, Czech Republic"]
[Date "2019.09.15"]
[Round "6.16"]
[White "Benes, Petr"]
[Black "Burgermeister, Michal"]
[Result "1-0"]
[TimeControl "15 min. + 5s"]
[WhiteElo "2147"]
[BlackElo "1908"]

1. c4 {[%clk 00:15:02]} {[%emt 00:00:07]} Nf6 {[%clk 00:15:06]} {[%emt
00:00:04]} 2. Nc3 {[%clk 00:15:03]} {[%emt 00:00:04]} g6 {[%clk 00:15:06]}
{[%emt 00:00:05]} 3. e4 {[%clk 00:15:02]} {[%emt 00:00:07]} d6 {[%clk
00:15:08]} {[%emt 00:00:02]} 4. d4 {[%clk 00:15:03]} {[%emt 00:00:05]} Bg7
{[%clk 00:15:09]} {[%emt 00:00:04]} 5. f4 {[%clk 00:15:05]} {[%emt 00:00:03]}
O-O {[%clk 00:15:02]} {[%emt 00:00:12]} 6. Nf3 {[%clk 00:15:07]} {[%emt
00:00:03]} c5 {[%clk 00:14:47]} {[%emt 00:00:19]} 7. d5 {[%clk 00:15:04]}
{[%emt 00:00:08]} e6 {[%emt 00:00:21]} 8. Be2 {[%emt 00:00:02]} exd5 {[%clk
00:14:46]} {[%emt 00:00:02]} 9. cxd5 {[%clk 00:14:56]} {[%emt 00:00:05]} a6
{[%clk 00:14:20]} {[%emt 00:00:31]} 10. e5 {[%clk 00:14:20]} {[%emt 00:00:41]}
Ng4 {[%clk 00:12:48]} {[%emt 00:01:37]} 11. Ng5 {[%clk 00:12:18]} {[%emt
00:02:07]} Nh6 {[%clk 00:10:28]} {[%emt 00:02:25]} 12. e6 {[%clk 00:10:49]}
{[%emt 00:01:35]} fxe6 {[%clk 00:09:45]} {[%emt 00:00:48]} 13. dxe6 {[%clk
00:10:10]} {[%emt 00:00:44]} Nc6 {[%clk 00:09:02]} {[%emt 00:00:47]} 14. Qd5
{[%clk 00:08:29]} {[%emt 00:01:47]} Ne7 {[%clk 00:07:49]} {[%emt 00:01:18]} 15.
Qf3 {[%clk 00:07:03]} {[%emt 00:01:31]} Nhf5 {[%clk 00:07:28]} {[%emt
00:00:26]} 16. O-O {[%clk 00:05:24]} {[%emt 00:01:45]} Nd4 {[%clk 00:07:24]}
{[%emt 00:00:08]} 17. Qh3 {[%clk 00:05:11]} {[%emt 00:00:18]} h6 {[%clk
00:04:48]} {[%emt 00:02:41]} 18. Nf7 {[%clk 00:05:13]} {[%emt 00:00:02]} Rxf7
{[%clk 00:04:03]} {[%emt 00:00:51]} 19. exf7+ {[%clk 00:05:16]} {[%emt
00:00:02]} Kxf7 {[%clk 00:03:58]} {[%emt 00:00:10]} 20. f5 {[%clk 00:04:57]}
{[%emt 00:00:24]} Bxf5 {[%clk 00:03:01]} {[%emt 00:01:02]} 21. g4 {[%clk
00:04:56]} {[%emt 00:00:06]} b5 {[%clk 00:02:01]} {[%emt 00:01:05]} 22. gxf5
{[%clk 00:04:43]} {[%emt 00:00:18]} Nexf5 {[%clk 00:02:02]} {[%emt 00:00:05]}
23. Bd3 {[%clk 00:04:07]} {[%emt 00:00:41]} Qd7 {[%clk 00:01:03]} {[%emt
00:01:04]} 24. Be4 {[%clk 00:03:04]} {[%emt 00:01:08]} Re8 {[%clk 00:00:42]}
{[%emt 00:00:26]} 25. Bd5+ {[%clk 00:03:07]} {[%emt 00:00:01]} Kf8 {[%clk
00:00:42]} {[%emt 00:00:04]} 26. Bxh6 {[%clk 00:02:54]} {[%emt 00:00:18]} b4
{[%clk 00:00:30]} {[%emt 00:00:17]} 27. Ne4 {[%clk 00:02:39]} {[%emt 00:00:21]}
Ne2+ {[%clk 00:00:23]} {[%emt 00:00:11]} 28. Kh1 {[%clk 00:02:31]} {[%emt
00:00:13]} Ke7 {[%clk 00:00:08]} {[%emt 00:00:20]} 29. Bg5+ {[%clk 00:02:06]}
{[%emt 00:00:30]} Rh8 {[%emt 00:00:09]} 1-0

[Event "MČR v rapid šachu družstev 2019"]
[Site "Teplice, Czech Republic"]
[Date "2019.09.15"]
[Round "6.17"]
[White "Vojta, Tomas"]
[Black "Trepka, Jan"]
[Result "1-0"]
[TimeControl "15 min. + 5s"]
[WhiteElo "2402"]
[BlackElo "2209"]

1. e4 {[%clk 00:15:08]} {[%emt 00:00:02]} c6 {[%clk 00:15:09]} 2. d4 {[%clk
00:15:12]} {[%emt 00:00:02]} d5 {[%clk 00:15:13]} {[%emt 00:00:01]} 3. e5
{[%clk 00:15:16]} Bf5 {[%clk 00:15:17]} {[%emt 00:00:01]} 4. Nc3 {[%clk
00:15:20]} {[%emt 00:00:01]} e6 {[%clk 00:15:20]} {[%emt 00:00:02]} 5. g4
{[%clk 00:15:24]} {[%emt 00:00:01]} Bg6 {[%clk 00:15:24]} {[%emt 00:00:01]} 6.
Nge2 {[%clk 00:15:28]} c5 {[%clk 00:15:27]} {[%emt 00:00:03]} 7. Be3 {[%clk
00:15:32]} {[%emt 00:00:01]} Nc6 {[%clk 00:15:22]} {[%emt 00:00:10]} 8. dxc5
{[%clk 00:15:35]} {[%emt 00:00:01]} Nxe5 {[%clk 00:14:27]} {[%emt 00:01:00]} 9.
Nd4 {[%clk 00:15:39]} Nc6 {[%clk 00:14:06]} {[%emt 00:00:27]} 10. Nb3 {[%clk
00:15:17]} {[%emt 00:00:28]} Nf6 {[%clk 00:13:17]} {[%emt 00:00:53]} 11. Qe2
{[%clk 00:14:44]} {[%emt 00:00:38]} Ne4 {[%clk 00:12:33]} {[%emt 00:00:49]} 12.
Nxe4 {[%clk 00:14:31]} {[%emt 00:00:18]} dxe4 {[%clk 00:12:35]} {[%emt
00:00:03]} 13. Bg2 {[%clk 00:14:03]} {[%emt 00:00:34]} Qc7 {[%clk 00:12:21]}
{[%emt 00:00:19]} 14. O-O-O {[%clk 00:13:04]} {[%emt 00:01:04]} f5 {[%clk
00:11:43]} {[%emt 00:00:43]} 15. Nd4 {[%clk 00:11:45]} {[%emt 00:01:24]} Nxd4
{[%clk 00:09:59]} {[%emt 00:01:49]} 16. Bxd4 {[%clk 00:11:45]} {[%emt
00:00:04]} Be7 {[%clk 00:09:55]} {[%emt 00:00:10]} 17. Qb5+ {[%clk 00:11:15]}
{[%emt 00:00:35]} Qc6 {[%clk 00:08:10]} {[%emt 00:01:49]} 18. Qxc6+ {[%clk
00:11:09]} {[%emt 00:00:11]} bxc6 {[%clk 00:08:15]} 19. Bxg7 {[%clk 00:11:12]}
{[%emt 00:00:02]} Rg8 {[%clk 00:08:19]} 20. Bd4 {[%clk 00:11:08]} {[%emt
00:00:09]} f4 {[%clk 00:07:28]} {[%emt 00:00:57]} 21. Rhe1 {[%clk 00:10:34]}
{[%emt 00:00:38]} f3 {[%clk 00:07:21]} {[%emt 00:00:13]} 22. Bf1 {[%clk
00:10:39]} Rd8 {[%clk 00:07:18]} {[%emt 00:00:07]} 23. Ba6 {[%clk 00:10:05]}
{[%emt 00:00:38]} Rd7 {[%clk 00:06:35]} {[%emt 00:00:49]} 24. Bc8 {[%clk
00:09:46]} {[%emt 00:00:24]} Bg5+ {[%clk 00:06:35]} {[%emt 00:00:05]} 25. Be3
{[%clk 00:08:49]} {[%emt 00:01:03]} Bxe3+ {[%clk 00:06:11]} {[%emt 00:00:28]}
26. Rxe3 {[%clk 00:08:43]} {[%emt 00:00:12]} Rxd1+ 27. Kxd1 {[%clk 00:08:47]}
Ke7 {[%clk 00:06:11]} {[%emt 00:00:08]} 28. Bb7 {[%clk 00:08:08]} {[%emt
00:00:43]} Kd7 {[%clk 00:05:56]} {[%emt 00:00:20]} 29. Ra3 {[%clk 00:07:33]}
{[%emt 00:00:40]} Be8 {[%clk 00:05:47]} {[%emt 00:00:14]} 30. Rxa7 {[%clk
00:06:43]} {[%emt 00:00:55]} Rxg4 {[%clk 00:05:47]} {[%emt 00:00:06]} 31. Ba6+
{[%clk 00:06:26]} {[%emt 00:00:22]} Kd8 {[%clk 00:05:49]} {[%emt 00:00:02]} 32.
Rxh7 {[%clk 00:06:26]} {[%emt 00:00:06]} e3 {[%clk 00:03:40]} {[%emt 00:02:14]}
33. fxe3 {[%clk 00:06:18]} {[%emt 00:00:13]} Rg1+ {[%clk 00:03:41]} {[%emt
00:00:03]} 34. Kd2 {[%clk 00:06:18]} {[%emt 00:00:06]} f2 {[%clk 00:03:26]}
{[%emt 00:00:19]} 35. a4 {[%clk 00:04:37]} {[%emt 00:01:46]} f1=Q {[%clk
00:03:27]} {[%emt 00:00:04]} 36. Bxf1 {[%clk 00:04:41]} {[%emt 00:00:02]} Rxf1
{[%clk 00:03:30]} {[%emt 00:00:01]} 37. Rh6 {[%clk 00:04:11]} {[%emt 00:00:35]}
Ke7 {[%clk 00:03:02]} {[%emt 00:00:33]} 38. b4 {[%clk 00:04:14]} {[%emt
00:00:03]} Ra1 {[%clk 00:02:43]} {[%emt 00:00:23]} 39. a5 {[%clk 00:04:12]}
{[%emt 00:00:08]} Bd7 {[%clk 00:02:11]} {[%emt 00:00:37]} 40. Kc3 {[%clk
00:04:07]} {[%emt 00:00:10]} Bc8 {[%clk 00:01:52]} {[%emt 00:00:24]} 41. Rh7+
{[%clk 00:04:04]} {[%emt 00:00:07]} Kd8 {[%clk 00:01:23]} {[%emt 00:00:34]} 42.
h4 {[%clk 00:04:08]} {[%emt 00:00:01]} Ra3+ {[%clk 00:01:13]} {[%emt 00:00:15]}
43. Kd4 {[%clk 00:04:07]} {[%emt 00:00:06]} Ra2 {[%clk 00:00:33]} {[%emt
00:00:45]} 44. Ke5 {[%clk 00:03:38]} {[%emt 00:00:34]} Rxc2 {[%clk 00:00:22]}
{[%emt 00:00:17]} 45. Kd6 {[%clk 00:03:39]} {[%emt 00:00:03]} Rd2+ {[%clk
00:00:26]} 46. Kxc6 {[%clk 00:03:39]} {[%emt 00:00:05]} Bd7+ {[%clk 00:00:19]}
{[%emt 00:00:13]} 47. Kb6 {[%clk 00:03:33]} {[%emt 00:00:11]} Rb2 {[%clk
00:00:11]} {[%emt 00:00:13]} 48. c6 {[%clk 00:03:19]} {[%emt 00:00:18]} Bxc6
{[%clk 00:00:09]} {[%emt 00:00:07]} 49. Kxc6 {[%clk 00:03:21]} {[%emt
00:00:03]} Rxb4 {[%clk 00:00:13]} 50. a6 {[%clk 00:03:15]} {[%emt 00:00:11]}
Ra4 {[%clk 00:00:12]} {[%emt 00:00:06]} 51. a7 {[%clk 00:03:13]} {[%emt
00:00:07]} 1-0

[Event "MČR v rapid šachu družstev 2019"]
[Site "Teplice, Czech Republic"]
[Date "2019.09.15"]
[Round "6.18"]
[White "Ruzicka, Ales"]
[Black "Zeman, Matyas"]
[Result "1/2-1/2"]
[TimeControl "15 min. + 5s"]
[WhiteElo "2119"]
[BlackElo "2247"]

1. e4 {[%clk 00:15:07]} {[%emt 00:00:02]} g6 {[%clk 00:15:04]} {[%emt
00:00:07]} 2. d4 {[%clk 00:15:08]} {[%emt 00:00:04]} Bg7 {[%clk 00:15:08]} 3.
Nc3 {[%clk 00:15:07]} {[%emt 00:00:06]} c6 {[%clk 00:15:11]} {[%emt 00:00:02]}
4. Be3 {[%clk 00:15:07]} {[%emt 00:00:05]} d5 {[%clk 00:15:09]} {[%emt
00:00:07]} 5. Qd2 {[%clk 00:15:00]} {[%emt 00:00:12]} dxe4 {[%clk 00:15:07]}
{[%emt 00:00:07]} 6. Nxe4 {[%clk 00:14:38]} {[%emt 00:00:28]} Nf6 {[%clk
00:15:09]} {[%emt 00:00:02]} 7. Nxf6+ {[%clk 00:14:35]} {[%emt 00:00:08]} exf6
{[%clk 00:15:12]} {[%emt 00:00:02]} 8. Nf3 {[%clk 00:14:24]} {[%emt 00:00:16]}
Bg4 {[%clk 00:15:00]} {[%emt 00:00:17]} 9. Be2 {[%clk 00:14:17]} {[%emt
00:00:12]} Nd7 {[%clk 00:15:03]} {[%emt 00:00:02]} 10. O-O {[%clk 00:14:11]}
{[%emt 00:00:11]} O-O {[%clk 00:15:06]} {[%emt 00:00:02]} 11. h3 {[%clk
00:14:09]} {[%emt 00:00:08]} Bxf3 {[%clk 00:15:05]} {[%emt 00:00:05]} 12. Bxf3
{[%clk 00:14:09]} {[%emt 00:00:05]} Nb6 {[%clk 00:15:08]} {[%emt 00:00:01]} 13.
b3 {[%clk 00:13:44]} {[%emt 00:00:30]} Re8 {[%clk 00:14:35]} {[%emt 00:00:39]}
14. Rad1 {[%clk 00:13:29]} {[%emt 00:00:20]} Nd5 {[%clk 00:14:37]} {[%emt
00:00:04]} 15. Rfe1 {[%clk 00:13:22]} {[%emt 00:00:12]} f5 {[%clk 00:14:32]}
{[%emt 00:00:09]} 16. c4 {[%clk 00:13:04]} {[%emt 00:00:23]} Nxe3 {[%clk
00:14:34]} {[%emt 00:00:03]} 17. Rxe3 {[%clk 00:12:49]} {[%emt 00:00:20]} Qd6
{[%clk 00:13:54]} {[%emt 00:00:45]} 18. Rxe8+ {[%clk 00:12:12]} {[%emt
00:00:42]} Rxe8 {[%clk 00:13:58]} {[%emt 00:00:01]} 19. d5 {[%clk 00:12:07]}
{[%emt 00:00:10]} c5 {[%clk 00:14:02]} {[%emt 00:00:01]} 20. Re1 {[%clk
00:11:16]} {[%emt 00:00:56]} Rxe1+ {[%clk 00:13:56]} {[%emt 00:00:11]} 21. Qxe1
{[%clk 00:11:20]} {[%emt 00:00:01]} Bd4 {[%clk 00:14:00]} {[%emt 00:00:02]} 22.
Bd1 {[%clk 00:09:36]} {[%emt 00:01:49]} Kg7 {[%clk 00:13:55]} {[%emt 00:00:09]}
23. Qe2 {[%clk 00:09:26]} {[%emt 00:00:15]} h5 {[%clk 00:12:13]} {[%emt
00:01:48]} 24. Qd3 {[%clk 00:07:50]} {[%emt 00:01:40]} Kf8 {[%clk 00:11:59]}
{[%emt 00:00:19]} 25. Qe2 {[%clk 00:07:50]} {[%emt 00:00:06]} a6 {[%clk
00:10:31]} {[%emt 00:01:32]} 26. a4 {[%clk 00:07:51]} {[%emt 00:00:04]} b6
{[%clk 00:09:09]} {[%emt 00:01:27]} 27. Bc2 {[%clk 00:07:33]} {[%emt 00:00:23]}
Qf4 {[%clk 00:09:13]} {[%emt 00:00:02]} 28. Bd1 {[%clk 00:07:30]} {[%emt
00:00:08]} Be5 {[%clk 00:08:33]} {[%emt 00:00:44]} 29. g3 {[%clk 00:07:07]}
{[%emt 00:00:28]} Qd4 {[%clk 00:08:37]} 30. Kg2 {[%clk 00:07:05]} {[%emt
00:00:07]} h4 {[%clk 00:08:39]} {[%emt 00:00:04]} 31. Qf3 {[%clk 00:06:11]}
{[%emt 00:00:58]} hxg3 {[%clk 00:08:20]} {[%emt 00:00:24]} 32. fxg3 {[%clk
00:06:09]} {[%emt 00:00:07]} f4 {[%clk 00:06:11]} {[%emt 00:02:14]} 33. gxf4
{[%clk 00:06:00]} {[%emt 00:00:14]} Bxf4 {[%clk 00:06:15]} 34. Be2 {[%clk
00:05:56]} {[%emt 00:00:08]} Bd6 {[%clk 00:06:06]} {[%emt 00:00:15]} 35. Bd3
{[%clk 00:05:26]} {[%emt 00:00:35]} Qe5 {[%clk 00:05:45]} {[%emt 00:00:26]} 36.
Be2 {[%clk 00:04:18]} {[%emt 00:01:14]} f5 {[%clk 00:05:21]} {[%emt 00:00:29]}
37. Bd3 {[%clk 00:04:10]} {[%emt 00:00:13]} Kg7 {[%clk 00:05:23]} {[%emt
00:00:02]} 38. Be2 {[%clk 00:04:08]} {[%emt 00:00:07]} Kf6 {[%clk 00:05:18]}
{[%emt 00:00:10]} 39. Bd3 {[%clk 00:04:11]} {[%emt 00:00:01]} Qh2+ {[%clk
00:02:41]} {[%emt 00:02:43]} 40. Kf1 {[%clk 00:04:14]} {[%emt 00:00:02]} Be5
{[%clk 00:02:43]} {[%emt 00:00:03]} 41. Be2 {[%clk 00:03:13]} {[%emt 00:01:06]}
Bd4 {[%clk 00:02:37]} {[%emt 00:00:11]} 42. Qg2 {[%clk 00:03:17]} Qf4+ {[%clk
00:02:34]} {[%emt 00:00:08]} 43. Qf3 {[%clk 00:03:21]} {[%emt 00:00:02]} Qc1+
{[%clk 00:02:21]} {[%emt 00:00:18]} 44. Bd1 {[%clk 00:03:22]} {[%emt 00:00:04]}
Be5 {[%clk 00:01:44]} {[%emt 00:00:41]} 45. Qd3 {[%clk 00:03:06]} {[%emt
00:00:21]} Ke7 {[%clk 00:01:10]} {[%emt 00:00:39]} 46. Qf3 {[%clk 00:02:37]}
{[%emt 00:00:34]} Kd6 {[%clk 00:01:11]} {[%emt 00:00:04]} 47. Kg2 {[%clk
00:02:34]} {[%emt 00:00:09]} Qg5+ {[%clk 00:00:58]} {[%emt 00:00:18]} 48. Kf1
{[%clk 00:02:32]} {[%emt 00:00:07]} Bd4 {[%clk 00:00:49]} {[%emt 00:00:13]} 49.
Qg2 {[%clk 00:02:03]} {[%emt 00:00:34]} Qf4+ {[%clk 00:00:43]} {[%emt
00:00:10]} 50. Qf3 {[%clk 00:02:03]} {[%emt 00:00:06]} Qh4 {[%clk 00:00:33]}
{[%emt 00:00:14]} 51. Kg2 {[%emt 00:01:44]} f4 {[%emt 00:00:06]} 52. Bc2 {[%emt
00:00:15]} g5 {[%emt 00:00:01]} 53. Bf5 {[%emt 00:00:10]} Qe1 {[%emt 00:00:02]}
54. Qf1 {[%emt 00:00:02]} Qg3+ {[%emt 00:00:03]} 1/2-1/2

[Event "MČR v rapid šachu družstev 2019"]
[Site "Teplice, Czech Republic"]
[Date "2019.09.15"]
[Round "6.19"]
[White "Svanda, Ondrej"]
[Black "Meszaros, Ludek"]
[Result "1-0"]
[TimeControl "15 min. + 5s"]
[WhiteElo "1920"]
[BlackElo "2059"]

1. e4 {[%clk 00:15:09]} e5 {[%clk 00:15:08]} {[%emt 00:00:02]} 2. Nf3 {[%clk
00:15:13]} {[%emt 00:00:01]} Nc6 {[%clk 00:15:12]} 3. Bb5 {[%clk 00:15:18]} a6
{[%clk 00:15:16]} 4. Ba4 {[%clk 00:15:22]} Nf6 {[%clk 00:15:20]} 5. O-O {[%clk
00:15:26]} {[%emt 00:00:01]} Be7 {[%clk 00:15:25]} 6. d3 {[%clk 00:15:20]}
{[%emt 00:00:13]} d6 {[%clk 00:15:28]} {[%emt 00:00:01]} 7. c3 {[%clk
00:15:22]} {[%emt 00:00:02]} O-O {[%clk 00:15:31]} {[%emt 00:00:02]} 8. Nbd2
{[%clk 00:15:19]} {[%emt 00:00:08]} Re8 {[%clk 00:15:33]} {[%emt 00:00:03]} 9.
Re1 {[%clk 00:15:23]} {[%emt 00:00:01]} Bf8 {[%clk 00:15:37]} {[%emt 00:00:02]}
10. Nf1 {[%clk 00:15:26]} {[%emt 00:00:01]} h6 {[%clk 00:15:40]} {[%emt
00:00:02]} 11. h3 {[%clk 00:14:44]} {[%emt 00:00:47]} Bd7 {[%clk 00:15:42]}
{[%emt 00:00:04]} 12. Ng3 {[%clk 00:14:40]} {[%emt 00:00:09]} g6 {[%clk
00:15:30]} {[%emt 00:00:16]} 13. d4 {[%clk 00:14:18]} {[%emt 00:00:27]} Bg7
{[%clk 00:15:24]} {[%emt 00:00:12]} 14. d5 {[%clk 00:13:23]} {[%emt 00:01:01]}
Nb8 {[%clk 00:15:26]} {[%emt 00:00:02]} 15. Bc2 {[%clk 00:13:26]} {[%emt
00:00:01]} a5 {[%clk 00:15:29]} {[%emt 00:00:03]} 16. Be3 {[%clk 00:13:10]}
{[%emt 00:00:20]} Na6 {[%clk 00:15:29]} {[%emt 00:00:05]} 17. Qd2 {[%clk
00:13:15]} {[%emt 00:00:01]} Kh7 {[%clk 00:15:33]} {[%emt 00:00:01]} 18. b3
{[%clk 00:12:42]} {[%emt 00:00:38]} Qe7 {[%clk 00:15:28]} {[%emt 00:00:09]} 19.
Red1 {[%clk 00:12:14]} {[%emt 00:00:34]} Red8 {[%clk 00:14:52]} {[%emt
00:00:40]} 20. c4 {[%clk 00:11:51]} {[%emt 00:00:29]} Nb4 {[%clk 00:14:35]}
{[%emt 00:00:22]} 21. Bb1 {[%clk 00:11:13]} {[%emt 00:00:43]} Be8 {[%clk
00:13:52]} {[%emt 00:00:47]} 22. a3 {[%clk 00:11:06]} {[%emt 00:00:13]} Na6
{[%clk 00:13:54]} {[%emt 00:00:02]} 23. Qxa5 {[%clk 00:10:36]} {[%emt
00:00:35]} Rdb8 {[%clk 00:13:29]} {[%emt 00:00:31]} 24. Qc3 {[%clk 00:10:14]}
{[%emt 00:00:27]} b5 {[%clk 00:13:08]} {[%emt 00:00:26]} 25. Bd3 {[%clk
00:09:23]} {[%emt 00:00:56]} c5 {[%clk 00:12:44]} {[%emt 00:00:28]} 26. dxc6
{[%clk 00:06:23]} {[%emt 00:03:05]} Bxc6 {[%clk 00:12:45]} {[%emt 00:00:05]} 27.
cxb5 {[%emt 00:01:25]} Bxb5 {[%clk 00:12:48]} {[%emt 00:00:02]} 28. Bxb5 {[%clk
00:05:08]} Rxb5 {[%clk 00:12:51]} 29. Qd3 {[%clk 00:05:09]} {[%emt 00:00:04]}
Nc7 {[%clk 00:11:59]} {[%emt 00:00:57]} 30. Qxd6 {[%clk 00:04:44]} {[%emt
00:00:30]} Qxd6 {[%clk 00:11:59]} {[%emt 00:00:05]} 31. Rxd6 {[%clk 00:04:47]}
{[%emt 00:00:02]} Rxb3 {[%clk 00:11:49]} {[%emt 00:00:15]} 32. a4 {[%clk
00:04:22]} {[%emt 00:00:30]} Rb4 {[%clk 00:11:35]} {[%emt 00:00:18]} 33. a5
{[%clk 00:03:14]} {[%emt 00:01:14]} Nxe4 {[%clk 00:07:34]} {[%emt 00:04:06]} 34.
Nxe4 {[%clk 00:03:17]} {[%emt 00:00:01]} Rxe4 35. Nd2 Rb4 {[%clk 00:07:17]}
{[%emt 00:00:19]} 36. Rd7 {[%clk 00:03:20]} {[%emt 00:00:03]} Ne6 {[%clk
00:07:02]} {[%emt 00:00:20]} 37. Rxf7 {[%clk 00:03:15]} {[%emt 00:00:11]} Kg8
{[%clk 00:07:01]} {[%emt 00:00:05]} 38. Rd7 {[%clk 00:02:57]} {[%emt 00:00:23]}
Ra6 {[%clk 00:06:27]} {[%emt 00:00:39]} 39. Rd5 {[%clk 00:02:07]} {[%emt
00:00:55]} Nc7 {[%clk 00:06:02]} {[%emt 00:00:30]} 40. Rd8+ {[%clk 00:02:00]}
{[%emt 00:00:12]} Kh7 {[%clk 00:06:02]} {[%emt 00:00:05]} 41. Rc1 {[%clk
00:01:50]} {[%emt 00:00:13]} Ne6 {[%clk 00:05:49]} {[%emt 00:00:21]} 42. Rd5
{[%clk 00:01:38]} {[%emt 00:00:16]} Ra4 {[%clk 00:05:33]} {[%emt 00:00:21]} 43.
Bb6 {[%clk 00:01:41]} {[%emt 00:00:03]} Nf4 {[%clk 00:05:35]} {[%emt 00:00:03]}
44. Rdc5 {[%clk 00:01:38]} {[%emt 00:00:08]} Ne2+ {[%clk 00:05:35]} {[%emt
00:00:04]} 45. Kh2 {[%clk 00:01:43]} {[%emt 00:00:01]} Nxc1 46. Rxc1 {[%clk
00:01:47]} h5 {[%clk 00:05:36]} {[%emt 00:00:07]} 47. Rc7 {[%clk 00:01:51]}
{[%emt 00:00:02]} g5 {[%clk 00:05:27]} {[%emt 00:00:14]} 48. Nb3 {[%clk
00:01:55]} Ra8 {[%clk 00:05:17]} {[%emt 00:00:14]} 49. Nc5 {[%clk 00:01:54]}
{[%emt 00:00:07]} Rc4 {[%clk 00:05:05]} {[%emt 00:00:17]} 50. Rb7 {[%clk
00:01:15]} {[%emt 00:00:44]} Kg8 {[%clk 00:04:20]} {[%emt 00:00:49]} 51. Ne6
{[%clk 00:01:18]} {[%emt 00:00:02]} Bf6 {[%clk 00:04:20]} {[%emt 00:00:06]} 52.
Nc7 {[%clk 00:01:11]} {[%emt 00:00:11]} Rc8 {[%clk 00:04:08]} {[%emt 00:00:16]}
53. Nd5 {[%clk 00:01:15]} {[%emt 00:00:02]} Bd8 {[%clk 00:03:45]} {[%emt
00:00:29]} 54. a6 {[%clk 00:01:05]} {[%emt 00:00:15]} R4c6 {[%clk 00:03:09]}
{[%emt 00:00:41]} 55. Bxd8 {[%clk 00:01:06]} {[%emt 00:00:04]} Rxa6 {[%clk
00:03:01]} {[%emt 00:00:13]} 56. Ne7+ {[%clk 00:01:10]} Kf8 {[%clk 00:03:03]}
{[%emt 00:00:04]} 57. Nxc8 {[%clk 00:01:14]} Ra8 {[%clk 00:03:06]} {[%emt
00:00:02]} 58. Be7+ {[%clk 00:01:15]} {[%emt 00:00:04]} Kf7 {[%clk 00:03:07]}
{[%emt 00:00:04]} 59. Nb6 {[%clk 00:01:15]} {[%emt 00:00:04]} Ra2 {[%clk
00:03:10]} {[%emt 00:00:03]} 60. Bxg5+ {[%clk 00:01:19]} {[%emt 00:00:01]} Rxf2
{[%clk 00:03:12]} {[%emt 00:00:03]} 1-0